[Event "Titled Tuesday Blitz December 27 Early 2022"]
[White "Omariev, Maksim"]
[Black "Suleymanli, Suleyman"]
[WhiteFideId "4193423"]
[BlackFideId "13416375"]
[WhiteElo "2304"]
[BlackElo "2269"]
[Result "0-1"]
[Round "05"]
[TimeControl "180+2"]
[Date "2022.12.27"]
[WhiteClock "0:00:01"]
[BlackClock "0:02:11"]

1. g4 {[%clk 0:03:00]}  d5 {[%clk 0:02:58]} 2. Bg2 {[%clk 0:03:00]}  Bxg4 {[%clk 0:02:57]} 3. c4 {[%clk 0:03:00]}  e6 {[%clk 0:02:54]} 4. Qb3 {[%clk 0:02:59]}  Nc6 {[%clk 0:02:51]} 5. cxd5 {[%clk 0:02:52]}  exd5 {[%clk 0:02:51]} 6. Bxd5 {[%clk 0:02:30]}  Nd4 {[%clk 0:02:46]} 7. Qa4+ {[%clk 0:01:42]}  c6 {[%clk 0:02:45]} 8. Qxd4 {[%clk 0:01:31]}  Qxd5 {[%clk 0:02:44]} 9. Qxd5 {[%clk 0:01:31]}  cxd5 {[%clk 0:02:44]} 10. Nc3 {[%clk 0:01:31]}  Nf6 {[%clk 0:02:41]} 11. h3 {[%clk 0:01:28]}  Be6 {[%clk 0:02:39]} 12. Nb5 {[%clk 0:01:09]}  Rc8 {[%clk 0:02:36]} 13. Nxa7 {[%clk 0:01:04]}  Rc5 {[%clk 0:02:36]} 14. a4 {[%clk 0:00:54]}  Ra5 {[%clk 0:02:26]} 15. Nb5 {[%clk 0:00:50]}  Bd7 {[%clk 0:02:26]} 16. Nd4 {[%clk 0:00:20]}  Rxa4 {[%clk 0:02:23]} 17. Rxa4 {[%clk 0:00:19]}  Bxa4 {[%clk 0:02:24]} 18. b3 {[%clk 0:00:17]}  Bd7 {[%clk 0:02:24]} 19. Ngf3 {[%clk 0:00:17]}  Bb4 {[%clk 0:02:24]} 20. Bb2 {[%clk 0:00:15]}  Ke7 {[%clk 0:02:22]} 21. h4 {[%clk 0:00:13]}  Ra8 {[%clk 0:02:20]} 22. Kd1 {[%clk 0:00:12]}  Ra2 {[%clk 0:02:20]} 23. Kc1 {[%clk 0:00:11]}  Ne4 {[%clk 0:02:15]} 24. Kb1 {[%clk 0:00:07]}  Ra8 {[%clk 0:02:16]} 25. d3 {[%clk 0:00:04]}  Nc3+ {[%clk 0:02:15]} 26. Kc2 {[%clk 0:00:01]}  Rc8 {[%clk 0:02:11]} 0-1


[Site "https://www.chess.com"]

[Event "Titled Tuesday Blitz December 27 Early 2022"]
[White "Orujov, Elshad"]
[Black "Altman, Joshua"]
[WhiteFideId "13403540"]
[BlackFideId "426210"]
[WhiteElo "2304"]
[BlackElo "2120"]
[Result "0-1"]
[Round "05"]
[TimeControl "180+2"]
[Date "2022.12.27"]
[WhiteClock "0:00:04"]
[BlackClock "0:00:16"]

1. e4 {[%clk 0:03:00]}  e6 {[%clk 0:03:00]} 2. d4 {[%clk 0:03:00]}  d5 {[%clk 0:03:00]} 3. Nd2 {[%clk 0:03:00]}  Nf6 {[%clk 0:03:00]} 4. e5 {[%clk 0:03:00]}  Nfd7 {[%clk 0:02:59]} 5. Bd3 {[%clk 0:02:55]}  c5 {[%clk 0:02:59]} 6. c3 {[%clk 0:02:54]}  Nc6 {[%clk 0:03:00]} 7. Ne2 {[%clk 0:02:53]}  Qb6 {[%clk 0:03:00]} 8. Nf3 {[%clk 0:02:53]}  cxd4 {[%clk 0:03:00]} 9. cxd4 {[%clk 0:02:53]}  f6 {[%clk 0:03:00]} 10. exf6 {[%clk 0:02:52]}  Nxf6 {[%clk 0:03:01]} 11. O-O {[%clk 0:02:52]}  Bd6 {[%clk 0:03:02]} 12. Bf4 {[%clk 0:02:49]}  Bxf4 {[%clk 0:03:02]} 13. Nxf4 {[%clk 0:02:50]}  Qxb2 {[%clk 0:03:01]} 14. Re1 {[%clk 0:02:48]}  O-O {[%clk 0:03:01]} 15. Rb1 {[%clk 0:02:35]}  Qxa2 {[%clk 0:03:00]} 16. Ng5 {[%clk 0:02:33]}  h6 {[%clk 0:02:50]} 17. Ngxe6 {[%clk 0:02:29]}  Bxe6 {[%clk 0:02:50]} 18. Nxe6 {[%clk 0:02:29]}  Rf7 {[%clk 0:02:45]} 19. Ra1 {[%clk 0:01:48]}  Qb2 {[%clk 0:02:42]} 20. Rb1 {[%clk 0:01:47]}  Qa3 {[%clk 0:02:33]} 21. Bg6 {[%clk 0:01:46]}  Re7 {[%clk 0:02:31]} 22. Nc5 {[%clk 0:01:46]}  Rxe1+ {[%clk 0:02:07]} 23. Qxe1 {[%clk 0:01:47]}  Nxd4 {[%clk 0:02:04]} 24. Nxb7 {[%clk 0:01:40]}  Rf8 {[%clk 0:01:35]} 25. f3 {[%clk 0:01:28]}  Qa6 {[%clk 0:00:57]} 26. h3 {[%clk 0:00:52]}  Ne2+ {[%clk 0:00:51]} 27. Kh2 {[%clk 0:00:49]}  Nf4 {[%clk 0:00:51]} 28. Bf5 {[%clk 0:00:41]}  Qa2 {[%clk 0:00:48]} 29. Qf1 {[%clk 0:00:33]}  Re8 {[%clk 0:00:34]} 30. Nd6 {[%clk 0:00:29]}  Rd8 {[%clk 0:00:17]} 31. Nb7 {[%clk 0:00:25]}  Rf8 {[%clk 0:00:17]} 32. Ra1 {[%clk 0:00:24]}  Qb2 {[%clk 0:00:17]} 33. Rxa7 {[%clk 0:00:04]}  Qe5 {[%clk 0:00:16]} 0-1


[Site "https://www.chess.com"]

[Event "Titled Tuesday Blitz December 27 Early 2022"]
[White "Pakleza, Zbigniew"]
[Black "Gurevich, Dmitry"]
[WhiteFideId "1119290"]
[BlackFideId "2000407"]
[WhiteElo "2494"]
[BlackElo "2393"]
[Result "1-0"]
[Round "05"]
[TimeControl "180+2"]
[Date "2022.12.27"]
[WhiteClock "0:00:08"]
[BlackClock "0:00:06"]

1. d4 {[%clk 0:03:00]}  Nf6 {[%clk 0:02:59]} 2. Nf3 {[%clk 0:03:01]}  e6 {[%clk 0:02:54]} 3. Bf4 {[%clk 0:03:01]}  b6 {[%clk 0:02:52]} 4. e3 {[%clk 0:03:02]}  Bb7 {[%clk 0:02:52]} 5. h3 {[%clk 0:03:02]}  Be7 {[%clk 0:02:52]} 6. Nbd2 {[%clk 0:03:03]}  O-O {[%clk 0:02:53]} 7. Bd3 {[%clk 0:03:04]}  c5 {[%clk 0:02:49]} 8. c3 {[%clk 0:03:04]}  cxd4 {[%clk 0:02:49]} 9. cxd4 {[%clk 0:03:04]}  d6 {[%clk 0:02:43]} 10. O-O {[%clk 0:03:00]}  a6 {[%clk 0:02:43]} 11. a3 {[%clk 0:02:59]}  Re8 {[%clk 0:02:41]} 12. Bh2 {[%clk 0:02:52]}  Nbd7 {[%clk 0:02:38]} 13. e4 {[%clk 0:02:45]}  Nf8 {[%clk 0:02:32]} 14. Re1 {[%clk 0:02:35]}  Ng6 {[%clk 0:02:32]} 15. Qb3 {[%clk 0:02:30]}  Rb8 {[%clk 0:02:17]} 16. Rac1 {[%clk 0:02:23]}  b5 {[%clk 0:02:12]} 17. Bf1 {[%clk 0:02:12]}  Rc8 {[%clk 0:02:07]} 18. Rxc8 {[%clk 0:02:02]}  Qxc8 {[%clk 0:02:06]} 19. e5 {[%clk 0:02:00]}  dxe5 {[%clk 0:01:58]} 20. dxe5 {[%clk 0:02:01]}  Nd5 {[%clk 0:01:57]} 21. Ne4 {[%clk 0:01:55]}  Qa8 {[%clk 0:01:46]} 22. Nd6 {[%clk 0:01:47]}  Bxd6 {[%clk 0:01:45]} 23. exd6 {[%clk 0:01:48]}  Rd8 {[%clk 0:01:44]} 24. Ne5 {[%clk 0:01:33]}  Nxe5 {[%clk 0:01:34]} 25. Bxe5 {[%clk 0:01:34]}  Qc8 {[%clk 0:01:16]} 26. Rd1 {[%clk 0:01:14]}  Kh8 {[%clk 0:01:11]} 27. a4 {[%clk 0:00:53]}  b4 {[%clk 0:01:10]} 28. Bg3 {[%clk 0:00:46]}  Qc6 {[%clk 0:01:04]} 29. a5 {[%clk 0:00:38]}  h6 {[%clk 0:01:03]} 30. Qc4 {[%clk 0:00:33]}  Qa4 {[%clk 0:00:44]} 31. Rc1 {[%clk 0:00:26]}  Qxa5 {[%clk 0:00:40]} 32. Qh4 {[%clk 0:00:26]}  f6 {[%clk 0:00:34]} 33. Bc4 {[%clk 0:00:20]}  Qc5 {[%clk 0:00:30]} 34. Rd1 {[%clk 0:00:13]}  Qc6 {[%clk 0:00:25]} 35. Bxd5 {[%clk 0:00:12]}  exd5 {[%clk 0:00:24]} 36. Qxb4 {[%clk 0:00:12]}  d4 {[%clk 0:00:21]} 37. f3 {[%clk 0:00:13]}  Qd7 {[%clk 0:00:15]} 38. Qxd4 {[%clk 0:00:11]}  Rc8 {[%clk 0:00:12]} 39. Re1 {[%clk 0:00:10]}  Rc2 {[%clk 0:00:08]} 40. Re7 {[%clk 0:00:08]}  Qc6 {[%clk 0:00:06]} 41. Qg4 {[%clk 0:00:08]} 1-0


[Site "https://www.chess.com"]

[Event "Titled Tuesday Blitz December 27 Early 2022"]
[White "Pinheiro, Iung Alicio de O."]
[Black "Bazarov, Konstantin"]
[WhiteFideId "2104350"]
[BlackFideId "4137000"]
[WhiteElo "2306"]
[BlackElo "2235"]
[Result "0-1"]
[Round "05"]
[TimeControl "180+2"]
[Date "2022.12.27"]
[WhiteClock "0:00:07"]
[BlackClock "0:00:07"]

1. c4 {[%clk 0:02:43]}  c6 {[%clk 0:02:59]} 2. g3 {[%clk 0:02:40]}  d5 {[%clk 0:02:59]} 3. Nf3 {[%clk 0:02:41]}  g6 {[%clk 0:02:57]} 4. Bg2 {[%clk 0:02:41]}  Bg7 {[%clk 0:02:56]} 5. O-O {[%clk 0:02:41]}  dxc4 {[%clk 0:02:56]} 6. a4 {[%clk 0:02:37]}  Nf6 {[%clk 0:02:47]} 7. Na3 {[%clk 0:02:35]}  Qd5 {[%clk 0:02:38]} 8. Ne1 {[%clk 0:02:08]}  Qc5 {[%clk 0:02:29]} 9. Qc2 {[%clk 0:02:03]}  Be6 {[%clk 0:02:28]} 10. d3 {[%clk 0:02:00]}  Na6 {[%clk 0:02:12]} 11. Nxc4 {[%clk 0:01:45]}  Bxc4 {[%clk 0:02:01]} 12. Qxc4 {[%clk 0:01:33]}  Qxc4 {[%clk 0:01:54]} 13. dxc4 {[%clk 0:01:34]}  Nb4 {[%clk 0:01:44]} 14. Nd3 {[%clk 0:01:29]}  Nxd3 {[%clk 0:01:34]} 15. exd3 {[%clk 0:01:30]}  O-O-O {[%clk 0:01:33]} 16. Rd1 {[%clk 0:01:19]}  Nd7 {[%clk 0:01:25]} 17. Be3 {[%clk 0:01:15]}  a6 {[%clk 0:01:22]} 18. Rab1 {[%clk 0:01:13]}  Ne5 {[%clk 0:01:19]} 19. Bf1 {[%clk 0:01:11]}  Nf3+ {[%clk 0:01:17]} 20. Kg2 {[%clk 0:01:11]}  Nd4 {[%clk 0:01:16]} 21. b4 {[%clk 0:01:12]}  Rd7 {[%clk 0:01:10]} 22. b5 {[%clk 0:01:02]}  axb5 {[%clk 0:01:09]} 23. cxb5 {[%clk 0:01:01]}  Rhd8 {[%clk 0:01:05]} 24. Rdc1 {[%clk 0:00:59]}  Rc7 {[%clk 0:00:57]} 25. Bf4 {[%clk 0:00:57]}  e5 {[%clk 0:00:55]} 26. Bg5 {[%clk 0:00:57]}  f6 {[%clk 0:00:55]} 27. Be3 {[%clk 0:00:57]}  cxb5 {[%clk 0:00:55]} 28. axb5 {[%clk 0:00:56]}  Rxc1 {[%clk 0:00:49]} 29. Rxc1+ {[%clk 0:00:55]}  Kb8 {[%clk 0:00:49]} 30. f4 {[%clk 0:00:48]}  Nxb5 {[%clk 0:00:46]} 31. fxe5 {[%clk 0:00:45]}  fxe5 {[%clk 0:00:45]} 32. Bb6 {[%clk 0:00:36]}  Rd6 {[%clk 0:00:42]} 33. Be3 {[%clk 0:00:34]}  Nd4 {[%clk 0:00:40]} 34. Bxd4 {[%clk 0:00:31]}  Rxd4 {[%clk 0:00:39]} 35. Be2 {[%clk 0:00:32]}  Ra4 {[%clk 0:00:35]} 36. Rb1 {[%clk 0:00:31]}  Kc7 {[%clk 0:00:34]} 37. Bf3 {[%clk 0:00:30]}  Ra2+ {[%clk 0:00:33]} 38. Kh3 {[%clk 0:00:29]}  b6 {[%clk 0:00:32]} 39. Be4 {[%clk 0:00:28]}  Rf2 {[%clk 0:00:24]} 40. Rc1+ {[%clk 0:00:27]}  Kd7 {[%clk 0:00:23]} 41. Rc6 {[%clk 0:00:26]}  Rb2 {[%clk 0:00:22]} 42. Rc3 {[%clk 0:00:22]}  Bh6 {[%clk 0:00:20]} 43. Ra3 {[%clk 0:00:20]}  Kd6 {[%clk 0:00:18]} 44. Ra7 {[%clk 0:00:20]}  Be3 {[%clk 0:00:17]} 45. Rxh7 {[%clk 0:00:20]}  g5 {[%clk 0:00:17]} 46. Kg4 {[%clk 0:00:20]}  b5 {[%clk 0:00:16]} 47. h4 {[%clk 0:00:17]}  gxh4 {[%clk 0:00:16]} 48. gxh4 {[%clk 0:00:17]}  b4 {[%clk 0:00:16]} 49. Rb7 {[%clk 0:00:18]}  Kc5 {[%clk 0:00:14]} 50. h5 {[%clk 0:00:18]}  Rh2 {[%clk 0:00:14]} 51. Bg6 {[%clk 0:00:17]}  Bd2 {[%clk 0:00:12]} 52. Kf5 {[%clk 0:00:16]}  Kd4 {[%clk 0:00:11]} 53. Ke6 {[%clk 0:00:16]}  Kc3 {[%clk 0:00:10]} 54. Rc7+ {[%clk 0:00:16]}  Kb2 {[%clk 0:00:10]} 55. Kxe5 {[%clk 0:00:16]}  Rh4 {[%clk 0:00:09]} 56. Bf7 {[%clk 0:00:15]}  Bf4+ {[%clk 0:00:08]} 57. Kf5 {[%clk 0:00:15]}  Bxc7 {[%clk 0:00:09]} 58. Kg5 {[%clk 0:00:15]}  Bd8+ {[%clk 0:00:09]} 59. Kg6 {[%clk 0:00:15]}  Bc7 {[%clk 0:00:09]} 60. h6 {[%clk 0:00:15]}  Be5 {[%clk 0:00:08]} 61. h7 {[%clk 0:00:14]}  b3 {[%clk 0:00:07]} 62. Kf5 {[%clk 0:00:13]}  Bd4 {[%clk 0:00:06]} 63. Bg8 {[%clk 0:00:12]}  Rh2 {[%clk 0:00:06]} 64. Ke4 {[%clk 0:00:12]}  Kc3 {[%clk 0:00:06]} 65. Bxb3 {[%clk 0:00:06]}  Kxb3 {[%clk 0:00:06]} 66. Kxd4 {[%clk 0:00:07]}  Rxh7 {[%clk 0:00:07]} 67. Ke5 {[%clk 0:00:07]}  Kb4 {[%clk 0:00:07]} 68. d4 {[%clk 0:00:08]}  Kb5 {[%clk 0:00:07]} 69. d5 {[%clk 0:00:08]}  Kb6 {[%clk 0:00:08]} 70. Ke6 {[%clk 0:00:09]}  Kc7 {[%clk 0:00:07]} 71. d6+ {[%clk 0:00:10]}  Kd8 {[%clk 0:00:08]} 72. Kd5 {[%clk 0:00:10]}  Rh6 {[%clk 0:00:08]} 73. Kc6 {[%clk 0:00:10]}  Rg6 {[%clk 0:00:08]} 74. Kc5 {[%clk 0:00:09]}  Kd7 {[%clk 0:00:09]} 75. Kd5 {[%clk 0:00:10]}  Rxd6+ {[%clk 0:00:09]} 76. Ke5 {[%clk 0:00:11]}  Ke7 {[%clk 0:00:09]} 77. Kf5 {[%clk 0:00:11]}  Rd5+ {[%clk 0:00:09]} 78. Ke4 {[%clk 0:00:11]}  Ke6 {[%clk 0:00:09]} 79. Kf4 {[%clk 0:00:11]}  Re5 {[%clk 0:00:10]} 80. Kf3 {[%clk 0:00:11]}  Kf5 {[%clk 0:00:09]} 81. Kf2 {[%clk 0:00:11]}  Kf4 {[%clk 0:00:09]} 82. Kg2 {[%clk 0:00:11]}  Rd5 {[%clk 0:00:08]} 83. Kh3 {[%clk 0:00:11]}  Rg5 {[%clk 0:00:07]} 84. Kh4 {[%clk 0:00:09]}  Rg8 {[%clk 0:00:07]} 85. Kh5 {[%clk 0:00:09]}  Rg1 {[%clk 0:00:07]} 86. Kh6 {[%clk 0:00:07]}  Kf5 {[%clk 0:00:07]} 87. Kh7 {[%clk 0:00:07]}  Kf6 {[%clk 0:00:07]} 88. Kh8 {[%clk 0:00:07]}  Kf7 {[%clk 0:00:07]} 0-1


[Site "https://www.chess.com"]

[Event "Titled Tuesday Blitz December 27 Early 2022"]
[White "Quinones Garcia, Santiago"]
[Black "Jenkins, Drake"]
[WhiteFideId "4408497"]
[BlackFideId "2022397"]
[WhiteElo "2248"]
[BlackElo "2130"]
[Result "1-0"]
[Round "05"]
[TimeControl "180+2"]
[Date "2022.12.27"]
[WhiteClock "0:00:10"]
[BlackClock "0:00:03"]

1. d4 {[%clk 0:01:12]}  Nf6 {[%clk 0:02:57]} 2. c4 {[%clk 0:01:11]}  c5 {[%clk 0:02:58]} 3. d5 {[%clk 0:01:10]}  b5 {[%clk 0:02:59]} 4. cxb5 {[%clk 0:01:10]}  a6 {[%clk 0:02:59]} 5. b6 {[%clk 0:01:11]}  Qxb6 {[%clk 0:02:58]} 6. Nc3 {[%clk 0:01:11]}  g6 {[%clk 0:02:59]} 7. Nf3 {[%clk 0:01:12]}  d6 {[%clk 0:03:00]} 8. e4 {[%clk 0:01:12]}  Bg7 {[%clk 0:03:00]} 9. Bd3 {[%clk 0:01:12]}  O-O {[%clk 0:02:59]} 10. O-O {[%clk 0:01:13]}  a5 {[%clk 0:02:59]} 11. Nd2 {[%clk 0:01:13]}  Ba6 {[%clk 0:03:00]} 12. Nc4 {[%clk 0:01:14]}  Qc7 {[%clk 0:02:46]} 13. a4 {[%clk 0:01:13]}  Nbd7 {[%clk 0:02:27]} 14. f3 {[%clk 0:01:06]}  Nb6 {[%clk 0:02:16]} 15. Nb5 {[%clk 0:00:58]}  Qd8 {[%clk 0:02:16]} 16. Ne3 {[%clk 0:00:49]}  Nfd7 {[%clk 0:02:06]} 17. Qc2 {[%clk 0:00:45]}  c4 {[%clk 0:01:57]} 18. Be2 {[%clk 0:00:43]}  Rc8 {[%clk 0:01:49]} 19. Bd2 {[%clk 0:00:42]}  Na8 {[%clk 0:01:12]} 20. Bc3 {[%clk 0:00:39]}  Bxc3 {[%clk 0:01:07]} 21. bxc3 {[%clk 0:00:39]}  Bxb5 {[%clk 0:00:59]} 22. axb5 {[%clk 0:00:39]}  Qb6 {[%clk 0:01:00]} 23. Qd2 {[%clk 0:00:34]}  Qxb5 {[%clk 0:01:00]} 24. Kh1 {[%clk 0:00:32]}  Nab6 {[%clk 0:00:55]} 25. Rfb1 {[%clk 0:00:31]}  Qa6 {[%clk 0:00:55]} 26. Nc2 {[%clk 0:00:28]}  Ra8 {[%clk 0:00:41]} 27. Nd4 {[%clk 0:00:27]}  Rfe8 {[%clk 0:00:41]} 28. Ra3 {[%clk 0:00:23]}  a4 {[%clk 0:00:39]} 29. Rb4 {[%clk 0:00:22]}  Nc5 {[%clk 0:00:35]} 30. Qe1 {[%clk 0:00:20]}  Reb8 {[%clk 0:00:31]} 31. Qf1 {[%clk 0:00:20]}  Qa7 {[%clk 0:00:29]} 32. Bxc4 {[%clk 0:00:20]}  Nxc4 {[%clk 0:00:29]} 33. Qxc4 {[%clk 0:00:20]}  Rc8 {[%clk 0:00:27]} 34. Nc6 {[%clk 0:00:20]}  Qd7 {[%clk 0:00:24]} 35. Raxa4 {[%clk 0:00:18]}  Rxa4 {[%clk 0:00:22]} 36. Rxa4 {[%clk 0:00:19]}  Nxa4 {[%clk 0:00:19]} 37. Qxa4 {[%clk 0:00:20]}  Kf8 {[%clk 0:00:18]} 38. h3 {[%clk 0:00:19]}  h5 {[%clk 0:00:17]} 39. c4 {[%clk 0:00:19]}  Qb7 {[%clk 0:00:16]} 40. Qa3 {[%clk 0:00:18]}  Rxc6 {[%clk 0:00:15]} 41. dxc6 {[%clk 0:00:18]}  Qxc6 {[%clk 0:00:16]} 42. Qb4 {[%clk 0:00:18]}  Qc5 {[%clk 0:00:15]} 43. Qb8+ {[%clk 0:00:17]}  Kg7 {[%clk 0:00:15]} 44. Qd8 {[%clk 0:00:17]}  Kf6 {[%clk 0:00:14]} 45. Qh8+ {[%clk 0:00:15]}  Ke6 {[%clk 0:00:14]} 46. Qc3 {[%clk 0:00:16]}  Qe5 {[%clk 0:00:13]} 47. Qb3 {[%clk 0:00:15]}  Qa1+ {[%clk 0:00:12]} 48. Kh2 {[%clk 0:00:16]}  Qe5+ {[%clk 0:00:12]} 49. g3 {[%clk 0:00:14]}  Qc5 {[%clk 0:00:10]} 50. Kg2 {[%clk 0:00:13]}  f5 {[%clk 0:00:10]} 51. exf5+ {[%clk 0:00:13]}  gxf5 {[%clk 0:00:10]} 52. Qd3 {[%clk 0:00:12]}  Kf6 {[%clk 0:00:08]} 53. h4 {[%clk 0:00:12]}  e5 {[%clk 0:00:07]} 54. Kh3 {[%clk 0:00:11]}  Ke6 {[%clk 0:00:05]} 55. g4 {[%clk 0:00:09]}  fxg4+ {[%clk 0:00:03]} 56. fxg4 {[%clk 0:00:10]}  hxg4+ {[%clk 0:00:03]} 57. Kxg4 {[%clk 0:00:10]}  Qg1+ {[%clk 0:00:04]} 58. Kf3 {[%clk 0:00:08]}  Qh1+ {[%clk 0:00:03]} 59. Kg3 {[%clk 0:00:09]}  Qg1+ {[%clk 0:00:03]} 60. Kf3 {[%clk 0:00:09]}  Qh1+ {[%clk 0:00:03]} 61. Kg4 {[%clk 0:00:10]}  Qg2+ {[%clk 0:00:03]} 62. Kh5 {[%clk 0:00:10]} 1-0


[Site "https://www.chess.com"]

[Event "Titled Tuesday Blitz December 27 Early 2022"]
[White "Rangel, Daniel"]
[Black "Osiecki, Stanislaw"]
[WhiteFideId "2124475"]
[BlackFideId "1102990"]
[WhiteElo "2207"]
[BlackElo "2055"]
[Result "1/2-1/2"]
[Round "05"]
[TimeControl "180+2"]
[Date "2022.12.27"]
[WhiteClock "0:01:07"]
[BlackClock "0:00:26"]

1. d4 {[%clk 0:02:54]}  Nf6 {[%clk 0:02:58]} 2. c4 {[%clk 0:02:55]}  g6 {[%clk 0:02:58]} 3. Nc3 {[%clk 0:02:56]}  Bg7 {[%clk 0:02:58]} 4. e4 {[%clk 0:02:56]}  d6 {[%clk 0:02:58]} 5. Nf3 {[%clk 0:02:56]}  O-O {[%clk 0:02:58]} 6. Be2 {[%clk 0:02:57]}  e5 {[%clk 0:02:50]} 7. O-O {[%clk 0:02:58]}  Nbd7 {[%clk 0:02:48]} 8. d5 {[%clk 0:02:56]}  a5 {[%clk 0:02:48]} 9. Qc2 {[%clk 0:02:56]}  Nc5 {[%clk 0:02:48]} 10. Ne1 {[%clk 0:02:55]}  Bg4 {[%clk 0:02:45]} 11. Bxg4 {[%clk 0:02:39]}  Nxg4 {[%clk 0:02:42]} 12. f3 {[%clk 0:02:39]}  Nf6 {[%clk 0:02:41]} 13. Be3 {[%clk 0:02:39]}  b6 {[%clk 0:02:39]} 14. b3 {[%clk 0:02:37]}  Nh5 {[%clk 0:02:39]} 15. Nd3 {[%clk 0:02:36]}  f5 {[%clk 0:02:34]} 16. Nxc5 {[%clk 0:02:33]}  bxc5 {[%clk 0:02:34]} 17. a3 {[%clk 0:02:26]}  f4 {[%clk 0:02:29]} 18. Bf2 {[%clk 0:02:18]}  g5 {[%clk 0:02:29]} 19. Rab1 {[%clk 0:02:12]}  Qd7 {[%clk 0:02:15]} 20. b4 {[%clk 0:02:10]}  axb4 {[%clk 0:02:12]} 21. axb4 {[%clk 0:02:11]}  cxb4 {[%clk 0:02:11]} 22. Rxb4 {[%clk 0:02:12]}  g4 {[%clk 0:02:09]} 23. fxg4 {[%clk 0:02:01]}  Qxg4 {[%clk 0:02:08]} 24. Nb5 {[%clk 0:01:44]}  f3 {[%clk 0:02:03]} 25. g3 {[%clk 0:01:43]}  Qh3 {[%clk 0:01:59]} 26. Be3 {[%clk 0:01:40]}  Nxg3 {[%clk 0:01:50]} 27. hxg3 {[%clk 0:01:27]}  Qxg3+ {[%clk 0:01:49]} 28. Kh1 {[%clk 0:01:27]}  Qh3+ {[%clk 0:01:31]} 29. Kg1 {[%clk 0:01:25]}  Qg3+ {[%clk 0:01:28]} 30. Kh1 {[%clk 0:01:25]}  Qh3+ {[%clk 0:00:26]} 31. Kg1 {[%clk 0:01:07]}  Qg3+ {[%clk 0:00:26]} 1/2-1/2


[Site "https://www.chess.com"]

[Event "Titled Tuesday Blitz December 27 Early 2022"]
[White "Rengifo Blancas, Renzo Jhonathan"]
[Black "Bortnyk, Olexandr"]
[WhiteFideId "3807185"]
[BlackFideId "14120828"]
[WhiteElo "2131"]
[BlackElo "2605"]
[Result "0-1"]
[Round "05"]
[TimeControl "180+2"]
[Date "2022.12.27"]
[WhiteClock "0:00:01"]
[BlackClock "0:01:05"]

1. e4 {[%clk 0:02:43]}  Nf6 {[%clk 0:02:59]} 2. e5 {[%clk 0:02:42]}  Nd5 {[%clk 0:02:58]} 3. c4 {[%clk 0:02:43]}  Nb6 {[%clk 0:02:57]} 4. a4 {[%clk 0:02:44]}  a5 {[%clk 0:02:57]} 5. Ra3 {[%clk 0:02:42]}  d6 {[%clk 0:02:52]} 6. exd6 {[%clk 0:02:40]}  cxd6 {[%clk 0:02:52]} 7. Rg3 {[%clk 0:02:40]}  g6 {[%clk 0:02:52]} 8. b3 {[%clk 0:02:39]}  Bg7 {[%clk 0:02:52]} 9. d4 {[%clk 0:02:38]}  Nc6 {[%clk 0:02:52]} 10. Nf3 {[%clk 0:02:38]}  h5 {[%clk 0:02:52]} 11. h4 {[%clk 0:02:37]}  Bg4 {[%clk 0:02:52]} 12. Be3 {[%clk 0:02:37]}  e5 {[%clk 0:02:41]} 13. Be2 {[%clk 0:02:22]}  Nd7 {[%clk 0:02:09]} 14. dxe5 {[%clk 0:02:06]}  dxe5 {[%clk 0:01:55]} 15. Ng5 {[%clk 0:01:25]}  Bxe2 {[%clk 0:01:46]} 16. Qxe2 {[%clk 0:01:26]}  O-O {[%clk 0:01:45]} 17. O-O {[%clk 0:00:52]}  Ne7 {[%clk 0:01:39]} 18. Rd1 {[%clk 0:00:47]}  Nf5 {[%clk 0:01:38]} 19. Rh3 {[%clk 0:00:47]}  Qe7 {[%clk 0:01:28]} 20. Nc3 {[%clk 0:00:47]}  Nf6 {[%clk 0:01:25]} 21. Bb6 {[%clk 0:00:33]}  Ra6 {[%clk 0:01:17]} 22. c5 {[%clk 0:00:32]}  Raa8 {[%clk 0:01:17]} 23. Nd5 {[%clk 0:00:11]}  Nxd5 {[%clk 0:01:16]} 24. Rxd5 {[%clk 0:00:12]}  Nxh4 {[%clk 0:01:12]} 25. Ne4 {[%clk 0:00:10]}  Nf5 {[%clk 0:01:11]} 26. Nd6 {[%clk 0:00:09]}  Qe6 {[%clk 0:01:09]} 27. Rhd3 {[%clk 0:00:08]}  Nd4 {[%clk 0:01:08]} 28. Qe4 {[%clk 0:00:06]}  f5 {[%clk 0:01:06]} 29. Qh4 {[%clk 0:00:02]}  Qxd5 {[%clk 0:01:06]} 30. Qg5 {[%clk 0:00:02]}  Ne2+ {[%clk 0:01:04]} 31. Kh2 {[%clk 0:00:01]}  Qxd3 {[%clk 0:01:05]} 32. Qxg6 {[%clk 0:00:01]}  Nf4 {[%clk 0:01:05]} 0-1


[Site "https://www.chess.com"]